Cogmind - Beta 17.1 @@@ ROGUE MODE // 2026.08.29 @ 05:51:49 // Winter2019/RPGLIKE Player: obl-vn Result: Destroyed by Y-45 Defender with Beam Rifle Performance ------------- Evolutions (1) 500 Regions Visited (2) 400 Robots Destroyed (25) 125 Value Destroyed (731) 731 Prototype IDs (2) 40 Alien Tech Used (0) 0 Bonus (5500) 5500 TOTAL SCORE: 7296 Bonus ------- Prayed to X0-1V1 5000 Major X0-1V1 Interference 500 Cogmind --------- Core Integrity 0/450 Matter 290/300 Energy 925/925 System Corruption 0% Temperature Cool (9) Movement Hovering (60) Location -9/Materials Parts ------- > --- POWER (1) -------- Light Ion Engine > --- PROPULSION (1) --- Improved Hover Unit > --- UTILITY (2) ------ Self-contained Transmogrifier X0-1V1's Piety Tracker > --- WEAPON (1) ------- Heavy Mace > --- INVENTORY (0) ---- (None) Peak State ------------ > --- POWER ------------ Light Ion Engine > --- PROPULSION ------- Improved Hover Unit > --- UTILITY ---------- Self-contained Transmogrifier X0-1V1's Piety Tracker > --- WEAPON ----------- Heavy Mace > --- INVENTORY -------- (None) [Rating: 28] Favorites ----------- Power Light Ion Engine Engine Light Ion Engine Propulsion Wheel Wheel Wheel Hover Unit Improved Hover Unit Utility Targeting Computer Device Self-contained Transmogrifier Processor Targeting Computer Weapon Beam Cannon Energy Cannon Beam Cannon Ballistic Gun Assault Rifle Launcher EMP Blaster Impact Weapon Heavy Mace Build | -11 -10 -9 ------- Run | Yrd Mat Mat Slots Evolved 1 | . 1 . Power . | . . . Propulsion . | . . . Utility 1 | . 1 . Weapon . | . . . Parts Attached 10 | 3 4 3 Power 1 | 1 . . Engine 1 | 1 . . Core . | . . . Reactor . | . . . Propulsion 2 | 1 . 1 Treads . | . . . Leg . | . . . Wheel 1 | 1 . . Hover 1 | . . 1 Flight . | . . . Utility 3 | . 3 . Device 1 | . 1 . Storage . | . . . Processor 2 | . 2 . Hackware . | . . . Protection . | . . . Artifact . | . . . Weapon 4 | 1 1 2 Energy Gun . | . . . Energy Cannon 1 | . 1 . Ballistic Gun 1 | 1 . . Ballistic Cannon . | . . . Launcher 1 | . . 1 Special Weapon . | . . . Impact Weapon 1 | . . 1 Slashing Weapon . | . . . Piercing Weapon . | . . . Special Melee Weapon . | . . . Unidentified Prototypes 1 | . 1 . Parts Lost . | . . . Power . | . . . Propulsion . | . . . Utility . | . . . Weapon . | . . . Highest Loss Streak . | . . . To Critical Strikes . | . . . Average Backups . | . . . Power . | . . . Propulsion . | . . . Utility . | . . . Weapon . | . . . Tool/Special . | . . . Unused Backups . | . . . Power . | . . . Propulsion . | . . . Utility . | . . . Weapon . | . . . Tool/Special . | . . . Average Slot Usage (%) 97 | . 97 100 Engine 20 | . 20 20 Wheel 19 | . 20 12 Hover 1 | . . 7 Device 7 | . 1 40 Processor 27 | . 33 . Energy Cannon 18 | . 20 7 Ballistic Gun 1 | . . 3 Launcher 1 | . . 7 Peak Build Rating 28 | 3 25 28 Average Rating 8 | 2 5 26 On Entrance 9 | . 3 25 Avg Prop Armor Cover (%) . | . . . Naked Turns . | . . . Heaviest Build 8 | 5 7 8 Greatest Support 15 | 10 10 15 Greatest Overweight (x) 1 | 1 . . Average Overweight (x) . | . . . Largest Inventory Capacity . | . . . Average Capacity . | . . . Most Carried . | . . . Average Carried . | . . . Final Capacity . | . . . Final Carried . | . . . Transmogrified Parts 1 | . . 1 Integrity Recovered 3 | . . 3 Class Distribution -------------------- 100% | Mutant Dominant Class ---------------- Mutant | -10/Materials Mutant | -9/Materials Resources | -11 -10 -9 ----------- Run | Yrd Mat Mat Matter Collected 304 | 224 46 34 Remotely . | . . . Salvage Created 903 | . 746 157 Parts 49 | . 42 7 Haulers Intercepted 2 | . 2 . Recyclers Shooed 1 | . 1 . Parts Field Recycled . | . . . Retrieved Matter . | . . . Parts Self-Destructed . | . . . Prevented . | . . . Parts Restored . | . . . Kills | -11 -10 -9 ------- Run | Yrd Mat Mat Combat Hostiles Destroyed 21 | . 19 2 Cannons 20 | . 19 1 AOE 1 | . . 1 Classes Destroyed 6 | . 5 1 Hauler 2 | . 2 . Recycler 1 | . 1 . Operator 1 | . 1 . Swarmer 6 | . 6 . Grunt 13 | . 13 . Sentry 2 | . . 2 Best Kill Streak 5 | . 5 1 Combat Bots Only 4 | . 4 1 Max Kills in Single Turn 1 | . 1 1 Gunslinging . | . . . Exploded 1 | . . 1 Melee . | . . . Uniques/NPCs Destroyed . | . . . Combat | -11 -10 -9 -------- Run | Yrd Mat Mat Hostile Shots Fired 103 | . 85 18 Missed 25 | . 19 6 Hits 78 | . 66 12 Projectile 78 | . 66 12 Critical Strikes 1 | . . 1 Damage Taken 851 | . 701 150 Core 748 | . 612 136 Absorbed by Shields . | . . . Redirected to Core 330 | . 283 47 Core Remaining (%) 64 | 100 28 . Volleys Fired 103 | . 98 5 Largest 1 | . 1 1 Hottest 60 | . 60 60 Shots Fired 103 | . 98 5 Gun . | . . . Cannon 102 | . 98 4 Launcher 1 | . . 1 Special . | . . . Kinetic . | . . . Thermal 102 | . 98 4 Explosive . | . . . Electromagnetic 1 | . . 1 Robot Hit Streak 9 | . 9 9 Robot Miss Streak 4 | . 4 1 Penetration Max . | . . . Secondary Targets . | . . . Shots Hit Robots 68 | . 64 4 Core Hits 27 | . 24 3 Critical Kills . | . . . Critical Parts Destroyed . | . . . Critical Strikes . | . . . Melee Attacks 2 | . . 2 Impact 2 | . . 2 Slashing . | . . . Piercing . | . . . Sneak Attacks . | . . . Combat Hostiles . | . . . Follow-up Attacks . | . . . Damage Inflicted 1248 | . 1123 125 Guns . | . . . Cannons 1175 | . 1123 52 Explosions 35 | . . 35 Melee 38 | . . 38 Ramming . | . . . Kinetic . | . . . Thermal 1175 | . 1123 52 Explosive . | . . . Electromagnetic 35 | . . 35 Impact 38 | . . 38 Slashing . | . . . Piercing . | . . . Highest Corruption . | . . . Average Corruption . | . . . Corruption Purged . | . . . Corruption Blocked . | . . . Overload Shots . | . . . Overflow Damage 28 | . 28 . Projectiles 28 | . 28 . Explosions . | . . . Melee . | . . . Knockbacks . | . . . Impact . | . . . Kinetic . | . . . Secondary . | . . . Self-Inflicted Damage . | . . . Shots . | . . . Rammed . | . . . Targets Rammed . | . . . Kicked . | . . . Crushed . | . . . Highest Temperature 274 | . 274 76 Average Temperature 67 | . 69 40 Received Heat Transfer 366 | . 276 90 Siege Activations . | . . . Martial Activations . | . . . Shielding Activations . | . . . Robots Disrupted . | . . . Combat Hostiles . | . . . Robots Corrupted . | . . . Combat Hostiles . | . . . Parts Fried . | . . . Impact Corruptions . | . . . Robots Melted . | . . . Combat Hostiles . | . . . Parts Melted 3 | . 3 . Heat Transferred 2479 | . 2368 111 Parts Sabotaged . | . . . Parts Stolen . | . . . Parts Stripped . | . . . Power Chain Reactions . | . . . Alert | -11 -10 -9 ------- Run | Yrd Mat Mat Maximum Alert Level 1 | . 1 . Low Security (%) 72 | 100 66 100 Level 1 27 | . 33 . Level 2 . | . . . Level 3 . | . . . Level 4 . | . . . Level 5 . | . . . High Security . | . . . Max Security . | . . . Peak Influence 301 | . 301 147 Initial 117 | . . 117 Average 137 | . 145 124 Influence Increases 698 | . 618 80 Destroy 0b10 Robot/C 420 | . 380 40 Destroy 0b10 Robot/NC 20 | . 20 . Destroy Leader 94 | . 74 20 Successful Hack 12 | . 8 4 Disable Machine 150 | . 135 15 Destroy Structure 2 | . 1 1 Influence Decreases 581 | . 341 240 Entered New Map 160 | . . 160 Time Decay 421 | . 341 80 Squads Dispatched 5 | . 4 1 Investigation 2 | . 2 . Extermination . | . . . Reinforcement 3 | . 2 1 Assault . | . . . Garrison . | . . . Intercept . | . . . Searches Triggered . | . . . Construction Impeded . | . . . Haulers Reinforced . | . . . Active Scanning Responses . | . . . Cargo Convoy Interrupts . | . . . Stealth | -11 -10 -9 --------- Run | Yrd Mat Mat Distress Signals 1 | . 1 . Communications Jammed . | . . . Distress Signals . | . . . Times Spotted 35 | . 29 6 Peak Tracking Total 6 | . 6 4 Tactical Retreats . | . . . Traps | -11 -10 -9 ------- Run | Yrd Mat Mat Traps Triggered 4 | . 4 . Indirectly . | . . . Trap Hack Attempts . | . . . Triggered . | . . . Disarmed . | . . . Reprogrammed . | . . . Reused . | . . . Traps Extracted . | . . . Installed . | . . . Triggered . | . . . Machines | -11 -10 -9 ---------- Run | Yrd Mat Mat Machines Disabled 10 | . 9 1 Max in Single Turn 1 | . 1 1 Machines Repaired . | . . . Machines Dismantled . | . . . Machines Sabotaged . | . . . Overloaded Fab Kills . | . . . Hacking | -11 -10 -9 --------- Run | Yrd Mat Mat Machines Accessed 8 | . 6 2 Terminals 8 | . 6 2 Fabricators . | . . . Repair Stations . | . . . Recycling Units . | . . . Scanalyzers . | . . . Garrison Access . | . . . Total Hacks 20 | . 16 4 Successful 8 | . 5 3 Failed 12 | . 11 1 Catastrophic 1 | . 1 . Database Lockouts . | . . . Manual 18 | . 15 3 Terminals 20 | . 16 4 Fabricators . | . . . Repair Stations . | . . . Recycling Units . | . . . Scanalyzers . | . . . Garrison Access . | . . . Terminal Hacks 1 | . . 1 Robot Analysis 1 | . . 1 Fabricator Hacks . | . . . Repair Station Hacks . | . . . Recycling Unit Hacks . | . . . Scanalyzer . | . . . Garrison Access Hacks . | . . . Unauthorized Hacks 7 | . 5 2 Terminals 7 | . 5 2 Skim 7 | . 5 2 Fabricators . | . . . Repair Stations . | . . . Recycling Units . | . . . Scanalyzers . | . . . Garrison Access . | . . . Data Cores Recovered . | . . . Used . | . . . Hacking Detections 7 | . 5 2 Full Trace Events . | . . . Feedback Events . | . . . Feedback Blocked . | . . . Robot Schematics Acquired . | . . . Robots Built . | . . . Authchips . | . . . Time . | . . . Total Robot Build Rating . | . . . Part Schematics Acquired . | . . . Parts Built . | . . . Authchips . | . . . Time . | . . . Total Part Build Rating . | . . . Part Studies Acquired . | . . . Parts Repaired . | . . . Time . | . . . Parts Recycled . | . . . Recycled Matter . | . . . Retrieved Matter . | . . . Retrieved Components . | . . . Parts Scanalyzed . | . . . Part Schematics Acquired . | . . . Parts Damaged . | . . . Bothacking | -11 -10 -9 ------------ Run | Yrd Mat Mat Used RIF Installer . | . . . Robots Hacked . | . . . Non-combat . | . . . Combat . | . . . Robot Hacks Applied . | . . . Relay Couplers Released . | . . . Fabnet Peak Effective % . | . . . Robots Rewired . | . . . Allies Hacked . | . . . Hacks Repelled . | . . . Allies | -11 -10 -9 -------- Run | Yrd Mat Mat Total Allies . | . . . Largest Group . | . . . Highest-Rated Group . | . . . Highest-Rated Ally . | . . . Total Orders . | . . . Ally Attacks . | . . . Total Damage . | . . . Kills . | . . . Allies Corrupted . | . . . Allies Melted . | . . . X0-1V1 Amusement Gains 4 | . 3 1 Average Entertainment 3 | . 5 3 Good Acts 2 | . . 2 Bad Acts 1 | . . 1 Intel | -11 -10 -9 ------- Run | Yrd Mat Mat Active Infowar (turns) . | . . . Robot Analysis Total 1 | . . 1 Derelict Logs Recovered . | . . . Drone Launches . | . . . Drone Recoveries . | . . . Exploration | -11 -10 -9 ------------- Run | Yrd Mat Mat Turns Passed 1105 | 38 907 160 Spaces Moved 1033 | 44 792 197 Core 14 | 14 . . Treads . | . . . Legs . | . . . Wheels 927 | 30 792 105 Hover 92 | . . 92 Flight . | . . . Fastest Speed 50 | 50 80 60 Average Speed 78 | 77 80 70 Slowest Speed 100 | 100 80 80 Overloaded Moves . | . . . Propulsion Burnouts . | . . . Robots Hopped . | . . . Potential Cave-ins . | . . . Cave-ins Triggered . | . . . Exploration Rate (%) 40 | 4 96 21 Regions Visited 2 Branch Regions . Pre-discovered Areas . | . . . Known Exits Taken . | . . . Unknown Exits Taken 2 | 1 1 . Scrap Searched . | . . . Spaces Dug . | . . . Terrain Destroyed . | . . . Melee . | . . . Projectile . | . . . AOE . | . . . Terrain Rammed . | . . . Walls Destroyed . | . . . Machines Disabled . | . . . Actions | -11 -10 -9 --------- Run | Yrd Mat Mat Total 1222 | 46 966 210 Wait 54 | . 54 . Move 1031 | 43 791 197 Hop . | . . . Pick Up . | . . . Fast Attach 11 | 3 5 3 Attach . | . . . Detach . | . . . Swap . | . . . Drop 6 | . 3 3 Fire 103 | . 98 5 Melee 2 | . . 2 Ram . | . . . Kick . | . . . Crush . | . . . Escape Stasis . | . . . Rewire . | . . . Trap . | . . . Miscellaneous 15 | . 15 . Route ------- -11/Scrapyard -10/Materials (discovered 6 exits: *Mat x3 / *Min x2 / *Sub) -9/Materials (discovered 5 exits: Mat x3 / Min x2) History --------- Turn | Location | Event 18 | -11/Scrapyard | Discovered new exit (range 16) 39 | -11/Scrapyard | Entered Materials 212 | -10/Materials | Upgraded with Utility slot (x1) 315 | -10/Materials | Build established: Mutant 352 | -10/Materials | Discovered new exit (range 10) 428 | -10/Materials | Discovered new exit (range 13) 477 | -10/Materials | Reached level 2 509 | -10/Materials | Discovered new exit (range 11) 555 | -10/Materials | Discovered new exit (range 6) 585 | -10/Materials | Identified exit to Mines 628 | -10/Materials | Core integrity fell below 50% 647 | -10/Materials | Identified exit to Subcaves 683 | -10/Materials | Discovered exit to Mines (range 5) 699 | -10/Materials | Learned location of 2 exits from Materials 773 | -10/Materials | Learned Storage trap positions 795 | -10/Materials | Loaded intel: 7 terminal locations 900 | -10/Materials | Made a sacrifice at D.C.S.S. Altar Unit 900 | -10/Materials | Forcibly received Sfc. Transmogifier from X0-1V1 900 | -10/Materials | Reached level 3 900 | -10/Materials | Reached level 4 946 | -10/Materials | Entered another Materials area 947 | -9/Materials | Identified exit to Materials 947 | -9/Materials | Identified exit to Mines 947 | -9/Materials | Core integrity fell below 50% 948 | -9/Materials | Reached level 5 963 | -9/Materials | X0-1V1 vaporized surrounding terrain (radius 15) 971 | -9/Materials | Core integrity fell below 20% 1054 | -9/Materials | Reached level 6 1096 | -9/Materials | X0-1V1 released a cloud of subatomizers 1106 | -9/Materials | Destroyed by Y-45 Defender with Beam Rifle Last Messages --------------- Please expand to 3 more systems! 01037_ K-01 Serf collects debris. 01038_ K-01 Serf cleans the Processing Tank. 01039_ Upgraded: Mass Support (+5) 01041_ Dropped Wheel. 01041_ Acquired Imp. Hover Unit. 01042_ K-01 Serf cleans the Processing Tank. 01054_ Door malfunctions. 01054_ Reached level 6. 01054_ Y-45 Defender destroyed. 01056_ Sfc. Transmogrifier converts EMP Blaster into Shotgun. 01056_ K-01 Serf collects debris. 01062_ Acquired 14 matter. 01064_ K-01 Serf collects debris. 01086_ Discarded Shotgun. 01086_ Acquired Hvy. Mace. 01096_ X0-1V1: "Have you ever seen what subatomizers do to 0b10?" 01106_ X0-1V1 laughs nastily! Map ----- +----------------------------------------------------+ | ?????????????????????????????????????????????????? | | ?????????????????????????????????????????????????? | | ?????????? ?????????????????>??????????????????? | | ?????????? ??????????????????????????????????? | | ??? ??? ??????????????????????????????????? | | ??? ??? ??????????????????????????????????? | | ??? ??# #??????????????????????????????????? | | ??? ??# #??????????????????????????????????? | | ???# #?# #??????????????????????????????????? | | ???# #?# #??????????????????????????????????? | | ???# #?# #??????????????????????????????????? | | ???+ #?# #??????????????????????????????????? | | ???# #?# #??????????????????????????????????? | | ???# #?# #??????????????????????????????????? | | ???# #?# #??????????????????????????????????? | | ???# ### #??????????????????????????????????? | | ???# #??????????????????????????????????? | | ???# #????##########????????????????????? | | ???# ##### ????????????????????? | | ???# ?????????????????????? | | ???# ?????????????????????? | | ???# ####+###???????????????????? | | ???# "" ## #???????????????????? | | ???# "T ##Y #???????????????????? | | ???# "" ##### Y /gg #???????????????????? | | ???# ##????? ##"@ #???????????????????? | | ???# #??????? ##T #???????????????????? | | ???# ##### #??????# ?#" #???????????????????? | | ???# #???# #??????# ?# #???????????????????? | | #####/###### #??????# #####+##??????????????????? | | # !%= ## #????### #???????????????????? | | # !! ## #????#"" #?????????########### | | # = " ## #????#"Y """ #?######??# % # | | #[ ## #????#"" """ #? ??# ] # | | # " ## #????### """ # "" ""???# |! # | | #/= """ ## #??????# # ""S"" ??# % " | | #/= """ ##+#####??# ] + """" ??#+###"##""" | | #/= # #??# # #?# # " " | | ######## ## """ #### !!! ########### # [ """ | | ????????### """ + !!! # !%% | | ??????????# """ #### !!! #! * """" | | ??????????# #??# # " | | ??????????# ! #??# #" | | ??????????########??###"T"# #"""" | | ??????????????????????##### | | ??????????????????????????# #"""" | | ??????????????????????????#### ###### " " | | ?????????????????????????????# #???#""""" " | | ?????????????????????????????#/ //[[#???## " | | ?????????????????????????????#////[[#????# | +----------------------------------------------------+ Best States ------------- Heat Dissipation 25 Energy Generation 10 Energy Capacity 925 Matter Stores 300 Matter Capacity 300 Sight Range 16 Terrain Scan Density 10 Evasion (%) 53 Targeting Accuracy 10 Item Schematics ----------------- None Robot Schematics ------------------ None Fabricated ------------ Nothing Repaired ---------- Nothing Studied --------- None Alien Tech Used ----------------- None Achievements -------------- None Challenges ------------ None RPGLIKE | -11 -10 -9 --------- Run | Yrd Mat Mat Levels Raised 5 | . 3 2 XP Earned 10550 | 3000 5425 2125 XP Spent 600 | . 500 100 Upgrades 2 | . 1 1 Utility Slot 1 | . 1 . Mass Support 1 | . . 1 Protomatter Created 231 | . 231 . Integrity Restored 307 | . 307 . Core 292 | . 292 . Parts 15 | . 15 . Protomatter Decayed 127 | . 127 . Game ------ Seed MobileConstructRifle Manual? 0 Play Time 00:12:56 Cumulative 243.8 hours Start 2026.08.29 @ 05:40:57 End 2026.08.29 @ 05:51:49 Sessions 1 Manual Loads 0 Difficulty Rogue Special Mode Winter2019/RPGLIKE Game No. 155 Rogue 155 Adventurer 0 Explorer 0 Win Type - Total 6 Types 2/0/2/1/0/0/0/1/0/0 Lore% 59 Gallery% 74 Achievement% 58 Wizard Run 0 Options --------- Layout 2 ASCII 0 Keyboard 0 Movement Mouse Keybinds 0 Fullscreen 1 Font 32/SmallcapsGlow Map View 50x44 Zoom Use 0% Tactical HUD 1 Map Filters NONE Filters NONE Steam 1 RUN: f675b0c2-b072-400b-a2cd-bd71523b4d5b